Cogmind - Beta 10.2 *** ADVENTURER MODE // 2020.11.13 @ 05:50:05 // Halloween2020/ForbiddenLore Player: STB Result: Self-destructed Performance ------------- Evolutions (1) 500 Regions Visited (2) 400 Robots Destroyed (18) 90 Value Destroyed (474) 474 Prototype IDs (0) 0 Alien Tech Used (0) 0 Bonus (0) 0 TOTAL SCORE: 1464 Bonus ------- None Cogmind --------- Core Integrity 318/400 Matter 300/300 Energy 100/100 System Corruption 1% Temperature Cool (0) Movement Treading (180) Ox1 Location -9/Materials Parts ------- > --- POWER (2) -------- (None) > --- PROPULSION (2) --- Light Treads > --- UTILITY (2) ------ Improved Heat Sink High-capacity Storage Unit > --- WEAPON (3) ------- Beam Rifle Mining Claw > --- INVENTORY (12) --- Visual Processing Unit Light Armor Plating Peak State ------------ > --- POWER ------------ Ion Engine Light Nuclear Core > --- PROPULSION ------- Light Treads Light Treads > --- UTILITY ---------- Improved Heat Sink High-capacity Storage Unit > --- WEAPON ----------- EM Pulse Gun Shotgun Mining Claw > --- INVENTORY -------- (None) [Rating: 14] Favorites ----------- Power Ion Engine Engine Ion Engine Power Core Light Nuclear Core Propulsion Light Treads Treads Light Treads Utility Improved Heat Sink Device Improved Heat Sink Storage High-capacity Storage Unit Protection Light Armor Plating Weapon EM Pulse Gun Energy Gun EM Pulse Gun Ballistic Gun Shotgun Slashing Weapon Mining Claw Build | -11 -10 -9 ------- Run | Scr Mat Mat Slots Evolved 2 | . . 2 Power 1 | . . 1 Propulsion . | . . . Utility . | . . . Weapon 1 | . . 1 Parts Attached 27 | 6 13 8 Power 4 | 1 2 1 Engine 3 | 1 2 . Core 1 | . . 1 Reactor . | . . . Propulsion 7 | 2 3 2 Treads 7 | 2 3 2 Leg . | . . . Wheel . | . . . Hover . | . . . Flight . | . . . Utility 8 | 1 5 2 Device 2 | . 1 1 Storage 5 | 1 3 1 Processor . | . . . Hackware . | . . . Protection 1 | . 1 . Artifact . | . . . Weapon 8 | 2 3 3 Energy Gun 6 | 2 2 2 Energy Cannon . | . . . Ballistic Gun 1 | . . 1 Ballistic Cannon . | . . . Launcher . | . . . Special Weapon . | . . . Impact Weapon . | . . . Slashing Weapon 1 | . 1 . Piercing Weapon . | . . . Special Melee Weapon . | . . . Unidentified Prototypes . | . . . Parts Lost 3 | . . 3 Power 2 | . . 2 Propulsion . | . . . Utility . | . . . Weapon 1 | . . 1 Highest Loss Streak 3 | . . 3 Average Slot Usage (%) 93 | . 95 83 Engine 13 | . 13 11 Core 1 | . . 7 Treads 25 | . 27 20 Device 8 | . 8 9 Storage 13 | . 14 10 Protection 2 | . 2 . Energy Gun 23 | . 27 12 Slashing Weapon 2 | . . 11 Naked Turns . | . . . Heaviest Build 50 | 12 42 50 Greatest Support 40 | 40 40 40 Greatest Overweight (x) 6 | 1 6 2 Average Overweight (x) . | . . 1 Largest Inventory Capacity 12 | 6 12 12 Average Capacity 10 | 5 10 11 Most Carried 4 | 2 4 2 Average Carried . | . . . Final Capacity 12 | 6 12 12 Final Carried 2 | . . 2 Class Distribution -------------------- 100% | Mutant Dominant Class ---------------- Mutant | -10/Materials Mutant | -9/Materials Resources | -11 -10 -9 ----------- Run | Scr Mat Mat Matter Collected 482 | 165 221 96 Remotely . | . . . Salvage Created 634 | . 287 347 Parts 35 | . 17 18 Haulers Intercepted . | . . . Recyclers Shooed . | . . . Parts Field Recycled . | . . . Retrieved Matter . | . . . Parts Self-Destructed . | . . . Prevented . | . . . Kills | -11 -10 -9 ------- Run | Scr Mat Mat Combat Hostiles Destroyed 13 | . 6 7 Melee 6 | . . 6 Guns 5 | . 4 1 AOE 2 | . 2 . Classes Destroyed 5 | . 4 1 Recycler 1 | . 1 . Watcher 4 | . 3 1 Swarmer 4 | . 4 . Grunt 7 | . 2 5 Sentry 2 | . . 2 Best Kill Streak 3 | . 3 3 Combat Bots Only 3 | . 3 3 Max Kills in Single Turn 1 | . 1 1 Gunslinging . | . . . Exploded 1 | . 1 . Melee 1 | . . 1 Uniques/NPCs Destroyed . | . . . Combat | -11 -10 -9 -------- Run | Scr Mat Mat Damage Taken 925 | . 361 564 Core 115 | . 33 82 Absorbed by Shields . | . . . Core Remaining (%) 93 | 100 86 . Volleys Fired 28 | . 23 5 Largest 2 | . 2 2 Hottest 80 | . 80 63 Shots Fired 55 | . 46 9 Gun 55 | . 46 9 Cannon . | . . . Launcher . | . . . Special . | . . . Kinetic 4 | . . 4 Thermal 3 | . 3 . Explosive . | . . . Electromagnetic 48 | . 43 5 Robot Hit Streak 7 | . 6 7 Robot Miss Streak 4 | . 4 3 Penetration Max . | . . . Secondary Targets 2 | . 1 1 Max Gunslinging Chain 1 | . 1 1 Shots Hit Robots 50 | . 23 27 Core Hits 23 | . 12 11 Critical Hits . | . . . Critical Kills . | . . . Critical Parts Destroyed . | . . . Melee Attacks 21 | . . 21 Impact . | . . . Slashing 21 | . . 21 Piercing . | . . . Sneak Attacks . | . . . Combat Hostiles . | . . . Follow-up Attacks . | . . . Damage Inflicted 1011 | . 427 584 Guns 454 | . 316 138 Cannons . | . . . Explosions 90 | . 90 . Melee 446 | . . 446 Ramming 21 | . 21 . Kinetic 61 | . . 61 Thermal 113 | . 113 . Explosive . | . . . Electromagnetic 370 | . 293 77 Impact . | . . . Slashing 446 | . . 446 Piercing . | . . . Highest Corruption 1 | . . 1 Average Corruption 1 | . . 1 Corruption Purged . | . . . Effects 2 | . . 2 Message Errors 1 | . . 1 Energy Discharges 1 | . . 1 Overload Shots . | . . . Overflow Damage . | . . . Projectiles . | . . . Explosions . | . . . Melee . | . . . Knockbacks . | . . . Impact . | . . . Kinetic . | . . . Secondary . | . . . Self-Inflicted Damage . | . . . Shots . | . . . Rammed 2 | . 2 . Targets Rammed 2 | . 2 . Kicked . | . . . Crushed . | . . . Highest Temperature 135 | . 135 . Average Temperature 40 | . 40 . Received Heat Transfer 384 | . 66 318 Siege Activations . | . . . Robots Corrupted . | . . . Combat Hostiles . | . . . Parts Fried 1 | . . 1 Impact Corruptions . | . . . Robots Melted . | . . . Combat Hostiles . | . . . Parts Melted . | . . . Heat Transferred 150 | . 150 . Parts Sabotaged . | . . . Parts Stolen . | . . . Parts Stripped . | . . . Power Chain Reactions 1 | . 1 . Missiles Intercepted . | . . . Alert | -11 -10 -9 ------- Run | Scr Mat Mat Peak Influence 194 | . 194 126 Initial . | . . . Average 35 | . 32 53 Maximum Alert Level . | . . . Low Security (%) 100 | 100 100 100 Level 1 . | . . . Level 2 . | . . . Level 3 . | . . . Level 4 . | . . . Level 5 . | . . . High Security . | . . . Max Security . | . . . Squads Dispatched 2 | . . 2 Investigation 1 | . . 1 Extermination . | . . . Reinforcement 1 | . . 1 Assault . | . . . Garrison . | . . . Intercept . | . . . Construction Impeded . | . . . Haulers Reinforced . | . . . Stealth | -11 -10 -9 --------- Run | Scr Mat Mat Distress Signals 1 | . . 1 Communications Jammed . | . . . Distress Signals . | . . . Times Spotted 29 | . 16 13 Peak Tracking Total 5 | . 4 5 Tactical Retreats . | . . . Traps | -11 -10 -9 ------- Run | Scr Mat Mat Traps Triggered 3 | . 2 1 Indirectly . | . . . Trap Hack Attempts . | . . . Triggered . | . . . Disarmed . | . . . Reprogrammed . | . . . Reused . | . . . Traps Extracted . | . . . Installed . | . . . Triggered . | . . . Machines | -11 -10 -9 ---------- Run | Scr Mat Mat Machines Disabled 1 | . 1 . Max in Single Turn 1 | . 1 . Machines Sabotaged . | . . . Garrisons Compromised . | . . . Overloaded Fab Kills . | . . . Fab Network Shutdowns . | . . . Hacking | -11 -10 -9 --------- Run | Scr Mat Mat Machines Accessed 2 | . 1 1 Terminals . | . . . Fabricators . | . . . Repair Stations 2 | . 1 1 Recycling Units . | . . . Scanalyzers . | . . . Garrison Access . | . . . Total Hacks 15 | . 3 12 Successful 12 | . 2 10 Failed 3 | . 1 2 Catastrophic . | . . . Database Lockouts . | . . . Manual . | . . . Terminals . | . . . Fabricators . | . . . Repair Stations 15 | . 3 12 Recycling Units . | . . . Scanalyzers . | . . . Garrison Access . | . . . Terminal Hacks . | . . . Fabricator Hacks . | . . . Repair Station Hacks 12 | . 2 10 Scan Component 6 | . 1 5 Repair 6 | . 1 5 Recycling Unit Hacks . | . . . Scanalyzer . | . . . Garrison Access Hacks . | . . . Unauthorized Hacks . | . . . Terminals . | . . . Fabricators . | . . . Repair Stations . | . . . Recycling Units . | . . . Scanalyzers . | . . . Garrison Access . | . . . Data Cores Recovered . | . . . Used . | . . . Hacking Detections 2 | . 1 1 Full Trace Events 2 | . 1 1 Feedback Events 1 | . . 1 Corruption 1 | . . 1 Feedback Blocked . | . . . Robot Schematics Acquired . | . . . Robots Built . | . . . Matter . | . . . Time . | . . . Total Robot Build Rating . | . . . Part Schematics Acquired . | . . . Parts Built . | . . . Matter . | . . . Time . | . . . Total Part Build Rating . | . . . Parts Repaired 6 | . 1 5 Time 168 | . 26 142 Parts Recycled . | . . . Recycled Matter . | . . . Retrieved Matter . | . . . Retrieved Components . | . . . Parts Scanalyzed . | . . . Part Schematics Acquired . | . . . Parts Damaged . | . . . Bothacking | -11 -10 -9 ------------ Run | Scr Mat Mat Used RIF Installer . | . . . Robots Hacked . | . . . Non-combat . | . . . Combat . | . . . Robot Hacks Applied . | . . . Relay Couplers Released . | . . . Robots Rewired . | . . . Allies Hacked . | . . . Hacks Repelled . | . . . Allies | -11 -10 -9 -------- Run | Scr Mat Mat Total Allies . | . . . Largest Group . | . . . Highest-Rated Group . | . . . Highest-Rated Ally . | . . . Total Orders . | . . . Ally Attacks . | . . . Total Damage . | . . . Kills . | . . . Allies Corrupted . | . . . Allies Melted . | . . . Intel | -11 -10 -9 ------- Run | Scr Mat Mat Robot Analysis Total . | . . . Derelict Logs Recovered . | . . . Drone Launches . | . . . Drone Recoveries . | . . . Exploration | -11 -10 -9 ------------- Run | Scr Mat Mat Turns Passed 2292 | 66 1733 493 Spaces Moved 1201 | 36 946 219 Core 7 | 3 4 . Treads 1194 | 33 942 219 Legs . | . . . Wheels . | . . . Hover . | . . . Flight . | . . . Fastest Speed 50 | 50 160 160 Average Speed 173 | 152 172 180 Slowest Speed 350 | 160 350 200 Overloaded Moves . | . . . Propulsion Burnouts . | . . . Robots Hopped . | . . . Cave-ins Triggered . | . . . Exploration Rate (%) 36 | 4 93 11 Regions Visited 2 Branch Regions . Pre-discovered Areas . | . . . Known Exits Taken . | . . . Unknown Exits Taken 2 | 1 1 . Scrap Searched . | . . . Spaces Dug . | . . . Terrain Destroyed 4 | . 4 . Melee . | . . . Projectile . | . . . AOE 4 | . 4 . Terrain Rammed . | . . . Walls Destroyed . | . . . Machines Disabled . | . . . Actions | -11 -10 -9 --------- Run | Scr Mat Mat Total 1314 | 47 1003 264 Wait . | . . . Move 1199 | 35 945 219 Hop . | . . . Pick Up 29 | 6 13 10 Fast Attach . | . . . Attach 19 | 6 6 7 Detach . | . . . Swap 8 | . 7 1 Drop 8 | . 7 1 Fire 28 | . 23 5 Melee 21 | . . 21 Ram . | . . . Kick . | . . . Crush 2 | . 2 . Escape Stasis . | . . . Rewire . | . . . Trap . | . . . Miscellaneous . | . . . Route ------- -11/Scrapyard -10/Materials (discovered 4 exits: *Mat x3 / [*Min]) -9/Materials (discovered 1 exit: [*Sto]) History --------- Turn | Location | Event 4 | -11/Scrapyard | Discovered new exit (range 16) 67 | -11/Scrapyard | Entered Materials 305 | -10/Materials | Build established: Mutant 340 | -10/Materials | Discovered new exit (range 5) 724 | -10/Materials | Discovered new exit (range 15) 790 | -10/Materials | Discovered new exit (range 15) 1512 | -10/Materials | Repaired Lgt. Treads 1617 | -10/Materials | Discovered new exit (range 6) 1800 | -10/Materials | Entered another Materials area 1800 | -9/Materials | Evolved 2 slots: Power x1, Weapon x1 1869 | -9/Materials | Repaired Imp. Heat Sink 1969 | -9/Materials | Repaired Lgt. Treads 1997 | -9/Materials | Repaired EM Pulse Gun 2026 | -9/Materials | Repaired Lgt. Treads 2058 | -9/Materials | Repaired Hcp. Storage Unit 2227 | -9/Materials | Discovered new exit (range 16) 2293 | -9/Materials | Self-destructed Last Messages --------------- R-06 Scavenger collects Signal Interpreter. O-16 Technician: "IFF HANDSHAKE FAILED. SECURING TERMINAL." K-01 Serf collects debris. R-06 Scavenger collects Hover Unit. ALERT: Hostiles spotted, dispatching reinforcements to Terminal M001. G-34 Mercenary destroyed. R-06 Scavenger collects Sml. Laser. G-47 Trooper destroyed. EM Pulse Gun destroyed. Lgt. Nuclear Core destroyed. K-01 Serf collects debris. G-34 Mercenary destroyed. K-01 Serf collects debris. Y-45 Defender destroyed. K-01 Serf collects debris. Triggered Blade Trap. Massive razor-sharp blades shoot up from within the floor. Lgt. Treads severed. Ion Engine destroyed. K-01 Serf collects debris. Map ----- +----------------------------------------------------+ | ?????????????????????????????????????????????????? | | ?????????????????????????????????????????????????? | | ?????????????????????????????????????????????????? | | ?????????????????????????????????????????????????? | | ?????????????????????????????????????????????????? | | ?????????????????????????????????????????????????? | | ?????????????????????????????????????????????????? | | ?????????????????????????????????????????????????? | | ?????????????????????????????????????????????????? | | ?????????????????????????????????????????????????? | | ?????????????????????????????????????????????????? | | ?????????????????????????????????????????????????? | | ???????????????????####??????????????????????????? | | ???????????????????# ??????????????????????????? | | ???????????????????# ??????????????????????????? | | ???????????????????+ < ?????????????????????????? | | ???????????????????# ?????????????????????????? | | ???????????????????? ???????#?????????????????? | | ????????????????????# ??????=#?????????????????? | | ????????????????????# ??????=#?????????????????? | | ????????????????????# ????? #?????????????????? | | ????????????????????# ???? #?????????????????? | | ???????????????????## ##? ???????????????????? | | ???????????????????# Y =##g#########+#??????????? | | ???????????????????# =%^ ????????? | | ???????????????????+ *@ ????????? | | ???????????????????# k ????????? | | ???????????????????# =%######## #?????????? | | ???????????????????#####[#???????????? #?????????? | | ???????????????????????#%#???????????????????????? | | ???????????????????????#%#???????????????????????? | | ????????????????######?#%#???????????????????????? | | ???????????????##!!!!### #???????????????????????? | | ###????????????#! !##%#???????????????????????? | | #????????????#! !## #???????????????????????? | | ############## ##[###?????????????????????? | | # = #?????????????????????? | | # #?????????????????????? | | # #?????????????????????? | | + ###+######+###########?????????????????????? | | # # ## [[[#???????????????????????????? | | # # """ ## [[[#???????????????????????????? | | # # """ ## [[#???????????????????????????? | | # # """ ## #???????????????????????????? | | # # """ ## ! #???????????????????????????? | | ### + """ ## #???????????????????????????? | | ??# # % #########???????????????????????????? | | ??# # #???????????????????????????????????? | | ??# #=% #???????????????????????????????????? | | ??# #""" #???????????????????????????????????? | +----------------------------------------------------+ Best States ------------- Heat Dissipation 42 Energy Generation 19 Energy Capacity 310 Matter Stores 300 Matter Capacity 300 Sight Range 16 Terrain Scan Density 10 Armor Coverage 150 Resistance: KI 20 Resistance: TH 20 Resistance: EX 20 Resistance: EM 20 Resistance: I 20 Resistance: S 20 Resistance: P 20 Evasion (%) 40 Recoil Reduction 2 Offensive Hacking 10 Item Schematics ----------------- None Robot Schematics ------------------ None Fabricated ------------ Nothing Alien Tech Used ----------------- None Achievements -------------- None Challenges ------------ None Game ------ Seed IntegrationPointRipper Manual? 0 Play Time 00:14:30 Cumulative 8.8 hours Start 2020.11.13 @ 05:36:21 End 2020.11.13 @ 05:50:05 Sessions 1 Manual Loads 0 Difficulty Adventurer Special Mode Halloween2020/ForbiddenLore Game No. 32 Rogue 1 Adventurer 31 Explorer 0 Win Type - Total 0 Types 0/0/0/0/0/0/0/0/0 Lore% 7 Gallery% 16 Achievement% 11 Wizard Run 0 Options --------- ASCII 0 Keyboard 0 Movement Mouse Keybinds 0 Fullscreen 1 Font 18/SmallcapsGlow Map View 76x50 Tactical HUD 0 Map Filters NONE Filters NONE Steam 1 RUN: 14058848-9439-4a55-8387-42098e731db0